bitfinex/quotes_ETHUSD_20230903
["timestamp","ask_amount","ask_price","bid_price","bid_amount"]
[1693761365895,0.88462812,1630.7,1630.6,1.06565395]
[1693761366038,0.88462812,1630.7,1630.5,0.64398163]
[1693761366239,0.88462812,1630.7,1630.5,1.06565395]
[1693761368262,1.574,1630.6,1630.5,1.06565395]
[1693761381290,1.574,1630.6,1630.4,2.7394]
[1693761381491,1.574,1630.6,1630.5,1.06571056]
[1693761391554,1.574,1630.6,1630.5,2.13142405]
[1693761391821,1.574,1630.6,1630.5,1.06571349]
[1693761393577,1.574,1630.6,1630.4,2.7394]
[1693761393787,1.574,1630.5,1630.4,3.17428245]
[1693761393989,1.574,1630.5,1630.4,4.2400168]
[1693761395935,1.574,1630.5,1630.4,4.8837866]
[1693761396537,1.574,1630.5,1630.4,4.2400168]
[1693761396737,1.574,1630.5,1630.4,4.8837866]
[1693761397848,1.574,1630.5,1630.4,4.2400168]
[1693761402112,1.574,1630.5,1630.4,3.80513435]
[1693761402759,1.574,1630.5,1630.4,4.44890415]
[1693761402968,1.574,1630.5,1630.4,1.06573435]
[1693761403170,1.574,1630.5,1630.3,1.70950415]
[1693761403470,1.574,1630.4,1630.2,1.6437698]
[1693761403609,1.574,1630.5,1630.3,1.06583973]
[1693761403812,3.6933,1630.4,1630.3,1.06583973]
[1693761404021,1.574,1630.4,1630.3,1.06583973]
[1693761404831,1.574,1630.4,1630.3,1.06584898]
[1693761405948,1.574,1630.4,1630.2,1.0]
[1693761406166,3.6933,1630.4,1630.2,1.0]
[1693761407085,4.22003,1630.4,1630.2,1.0]
[1693761408269,3.6933,1630.4,1630.2,1.0]
[1693761408794,1.574,1630.3,1630.2,1.0]
[1693761408996,1.574,1630.3,1630.2,2.06585197]
[1693761410902,1.574,1630.3,1630.2,1.0]
[1693761437673,0.49959786,1630.4,1630.2,1.0]
[1693761437875,1.574,1630.5,1630.2,1.0]
[1693761441777,1.574,1630.5,1630.3,1.06584271]
[1693761442126,1.574,1630.5,1630.3,3.80544271]
[1693761442324,1.574,1630.5,1630.3,3.28450598]
[1693761444447,1.574,1630.4,1630.3,3.28450598]
[1693761444674,1.574,1630.4,1630.3,4.35033038]
[1693761445571,1.574,1630.4,1630.3,4.35034696]
[1693761447819,1.574,1630.4,1630.3,3.28450598]
[1693761447988,1.574,1630.4,1630.3,4.35034463]
[1693761448893,1.574,1630.4,1630.3,4.35034424]
[1693761449884,1.574,1630.4,1630.3,3.28450598]
[1693761450244,1.574,1630.4,1630.3,4.35034394]
[1693761450540,1.574,1630.4,1630.3,3.28450598]
[1693761454385,1.574,1630.4,1630.3,2.7396]
[1693761455416,1.574,1630.4,1630.2,1.0]
[1693761455760,1.574,1630.3,1630.2,1.0]
[1693761476243,13.89608372,1630.3,1630.2,1.0]
[1693761476447,13.89608372,1630.3,1629.9,2.5087]
[1693761476698,12.77360613,1630.2,1629.9,2.5087]
[1693761476868,6.18902537,1630.1,1629.8,2.5087]
[1693761477080,1.574,1629.9,1629.8,2.5087]
[1693761498151,1.574,1629.9,1629.8,3.57491938]
[1693761498354,1.574,1629.9,1629.8,3.57491983]
[1693761502579,1.574,1629.9,1629.8,3.99677352]
[1693761502778,1.574,1629.9,1629.8,4.64039062]
[1693761503081,5.53995969,1630.1,1629.8,4.64039062]
[1693761503082,1.574,1630.0,1629.8,4.64039062]
[1693761503465,1.574,1630.0,1629.9,1.06621983]
[1693761509674,1.574,1630.0,1629.8,2.93055369]
[1693761510012,1.574,1629.9,1629.8,2.93055369]
[1693761510306,1.574,1629.9,1629.8,3.99672013]
[1693761510464,1.574,1629.9,1629.8,2.5087]
[1693761515864,1.574,1629.9,1629.6,0.6436171]
[1693761516065,3.7652,1629.9,1629.6,2.6912]
[1693761521406,3.7652,1629.9,1629.7,1.06627185]
[1693761523411,1.574,1629.8,1629.7,1.06627185]
[1693761536667,1.574,1629.8,1629.7,1.06625486]
[1693761545683,1.574,1629.8,1629.6,2.6912]
[1693761545888,1.574,1629.7,1629.6,2.6912]
[1693761546049,1.574,1629.7,1629.6,3.75746151]
[1693761550690,1.574,1629.7,1629.6,4.40146319]
[1693761551493,1.574,1629.7,1629.6,3.75746151]
[1693761552000,1.574,1629.7,1629.6,4.40146319]
[1693761563144,1.574,1629.7,1629.6,1.71026319]
[1693761563290,1.574,1629.7,1629.6,1.06626151]
[1693761563474,1.574,1629.7,1629.5,1.71026319]
[1693761563680,1.574,1629.7,1629.6,1.06626151]
[1693761563997,1.574,1629.7,1629.5,1.71026319]
[1693761564428,1.574,1629.6,1629.5,1.71026319]
[1693761567780,1.574,1629.6,1629.5,1.06626151]
[1693761568209,1.574,1629.8,1629.5,2.23609976]
[1693761568413,1.574,1629.8,1629.6,1.06626151]
[1693761568767,1.574,1629.8,1629.6,2.7077]
[1693761569967,1.574,1629.8,1629.7,1.06625279]
[1693761572610,1.574,1629.9,1629.7,1.06625279]
[1693761575809,1.574,1629.8,1629.7,1.06625279]
[1693761582842,1.574,1629.8,1629.7,1.06622622]
[1693761584536,1.574,1629.9,1629.7,1.06622622]
[1693761584749,1.574,1630.0,1629.7,1.6046717]
[1693761584914,48.79312889,1630.1,1629.8,0.64421142]
[1693761584915,49.864,1630.1,1629.8,0.64421142]
[1693761585102,48.29,1630.1,1629.8,4.35083764]
[1693761585299,48.29,1630.1,1629.9,1.06622622]
[1693761586155,49.864,1630.1,1629.9,1.06622622]
[1693761586314,51.8931,1630.1,1629.9,1.06622622]
[1693761587842,51.8931,1630.1,1629.8,2.6404]
[1693761588042,1.574,1630.0,1629.8,3.1193374]
[1693761595974,1.574,1630.0,1629.8,2.6404]
[1693761596172,3.6505,1630.0,1629.8,2.6404]
[1693761597873,1.574,1629.9,1629.8,2.6404]
[1693761598372,1.574,1629.9,1629.5,0.64421142]
[1693761598558,3.6505,1630.0,1629.6,2.5465]
[1693761598763,1.574,1629.7,1629.6,2.5465]
[1693761598958,1.574,1629.7,1629.6,3.61277091]
[1693761610448,1.574,1629.8,1629.6,3.61277091]
[1693761610644,1.574,1629.8,1629.6,2.5465]
[1693761611677,1.574,1629.8,1629.7,1.06621226]
[1693761611990,3.7437,1629.9,1629.7,1.06621226]
[1693761620985,2.1697,1629.9,1629.7,1.06621226]
[1693761621377,2.1697,1629.9,1629.7,1.58853634]
[1693761621572,2.1697,1629.9,1629.8,1.06621226]
[1693761621772,1.574,1630.0,1629.8,1.06621226]
[1693761621978,3.6213,1630.0,1629.7,1.1665355]
[1693761622181,3.6213,1630.0,1629.8,1.06614325]
[1693761622556,3.6213,1630.0,1629.8,3.71924325]
[1693761622761,3.6213,1630.0,1629.8,2.6531]
[1693761622963,2.0473,1630.0,1629.8,3.14167788]
[1693761623283,48.29,1630.1,1629.9,1.06609087]
[1693761623486,50.3373,1630.1,1629.9,1.06609087]
[1693761624284,51.9113,1630.1,1629.9,1.06609087]
[1693761624691,50.3373,1630.1,1629.9,1.55128889]
[1693761624870,50.3373,1630.1,1629.9,0.48519802]
[1693761627319,50.3373,1630.1,1630.0,1.0]
[1693761631418,51.9113,1630.1,1630.0,1.0]
[1693761635740,58.10026741,1630.1,1630.0,1.0]
[1693761637636,51.9113,1630.1,1630.0,1.0]
[1693761638231,58.10026815,1630.1,1630.0,1.0]
[1693761641346,63.91029497,1630.1,1630.0,1.0]
[1693761642838,63.91029497,1630.1,1629.5,3.37881142]
[1693761643022,7.76296815,1630.0,1629.6,1.06627272]
[1693761643380,1.574,1629.7,1629.6,1.06627272]
[1693761645934,0.574,1629.7,1629.6,1.06627272]
[1693761647342,0.574,1629.7,1629.6,1.06628228]
[1693761647669,0.574,1629.7,1629.3,3.25541142]
[1693761647883,0.574,1629.7,1629.4,1.06640161]
[1693761648048,2.16,1629.6,1629.4,1.06640161]
[1693761648763,3.148,1629.5,1629.4,1.06640161]
[1693761650472,1.574,1629.5,1629.4,1.06640161]
[1693761650916,1.574,1629.5,1629.3,2.6112]
[1693761651032,1.574,1629.4,1629.3,2.6112]
[1693761651374,1.574,1629.4,1629.3,3.67760269]
[1693761652251,1.574,1629.4,1629.3,4.20641581]
[1693761661883,1.574,1629.4,1629.1,0.64421142]
[1693761662047,3.6578,1629.4,1629.1,4.29030943]
[1693761662248,3.6578,1629.4,1629.2,1.06649801]
[1693761662448,3.6578,1629.4,1629.1,2.5796]
[1693761663175,1.574,1629.2,1629.1,2.5796]
[1693761663374,1.574,1629.2,1629.1,3.64612739]
[1693761664308,1.574,1629.2,1629.1,4.29033881]
[1693761664808,1.574,1629.2,1629.1,1.71073881]
[1693761665199,1.574,1629.2,1629.1,1.06652739]
[1693761665527,1.574,1629.2,1629.1,0.64421142]
[1693761666207,0.93407948,1629.2,1629.1,0.64421142]
[1693761667605,0.93407948,1629.2,1629.1,1.06652739]
[1693761667815,0.93407948,1629.2,1628.9,3.39691142]
[1693761667995,0.93407948,1629.2,1629.0,1.0666457]
[1693761670390,0.93407948,1629.2,1628.9,1.71052855]
[1693761670594,2.0838,1629.4,1629.0,1.06667509]
[1693761670794,1.574,1629.1,1629.0,1.06667509]
[1693761671367,1.574,1629.1,1629.0,1.71088651]
[1693761672509,0.43621698,1629.1,1629.0,1.71088651]
[1693761676584,0.43621698,1629.1,1629.0,2.67720364]
[1693761677603,0.43621698,1629.1,1629.0,2.03299222]
[1693761679397,0.43621698,1629.1,1629.0,0.96631713]
[1693761679594,0.43621698,1629.1,1629.0,2.03299222]
[1693761680322,0.43621698,1629.1,1629.0,3.32141506]
[1693761681221,0.43621698,1629.1,1629.0,2.35509793]
[1693761684584,0.43621698,1629.1,1629.0,3.96562649]
[1693761684792,0.43621698,1629.1,1629.0,2.35509793]
[1693761686627,0.43621698,1629.1,1629.0,3.96562649]
[1693761686830,0.43621698,1629.1,1629.0,2.35509793]
[1693761686999,0.43621698,1629.1,1629.0,3.96562649]
[1693761687604,0.43621698,1629.1,1629.0,2.35509793]
[1693761687807,0.43621698,1629.1,1629.0,3.96562649]
[1693761688406,0.43621698,1629.1,1629.0,2.35509793]
[1693761692367,1e-08,1629.1,1629.0,2.35509793]
[1693761693765,1e-08,1629.1,1629.0,2.25237436]
[1693761693957,1e-08,1629.1,1629.0,3.31904945]
[1693761694355,1e-08,1629.1,1629.0,2.35509793]
[1693761694795,1e-08,1629.1,1629.0,2.25241937]
[1693761694972,1e-08,1629.1,1629.0,3.31909446]
[1693761695860,1e-08,1629.1,1629.0,2.03067162]
[1693761696761,1e-08,1629.1,1629.0,2.67349134]
[1693761698607,1e-08,1629.1,1629.0,1.70949481]
[1693761698759,1e-08,1629.1,1629.0,2.43686304]
[1693761698949,2.06594627,1629.2,1629.0,5.17056304]
[1693761699154,1.574,1629.2,1629.1,1.70957695]
[1693761701788,1.574,1629.2,1629.1,1.06667509]
[1693761702686,1.574,1629.2,1629.1,1.70957695]
[1693761702885,1.574,1629.2,1629.1,1.06667509]
[1693761704603,7.76601908,1629.2,1629.1,1.06667509]
[1693761706612,7.76601908,1629.2,1629.1,1.70957695]
[1693761706773,7.76601908,1629.2,1629.1,1.06667509]
[1693761714845,8.26850077,1629.2,1629.1,1.06667509]
[1693761716144,7.76601908,1629.2,1629.1,1.06667509]
[1693761726600,1.574,1629.2,1629.1,1.06667509]
[1693761734508,1.574,1629.3,1629.1,1.51100278]
[1693761734803,2.0506,1629.4,1629.1,2.15390464]
[1693761735201,2.0506,1629.4,1629.2,1.06667509]
[1693761735709,2.0506,1629.4,1629.2,3.71947509]
[1693761735906,2.0506,1629.4,1629.2,2.6528]
[1693761736065,3.6246,1629.4,1629.2,2.6528]
[1693761738105,2.6246,1629.4,1629.2,2.6528]
[1693761741135,1.574,1629.3,1629.2,2.6528]
[1693761741289,1.574,1629.3,1629.2,3.71933397]
[1693761743421,1.574,1629.3,1629.2,4.85449197]
[1693761761068,1.574,1629.3,1629.2,3.787958]
[1693761764274,1.574,1629.3,1629.2,4.8545378]
[1693761764760,1.574,1629.3,1629.2,3.787958]
[1693761765274,1.574,1629.3,1629.2,4.85454092]
[1693761765440,1.574,1629.3,1629.2,4.85453977]
[1693761765774,1.574,1629.3,1629.2,3.787958]
[1693761769885,1.574,1629.3,1629.2,4.85455204]
[1693761770187,7.76556505,1629.3,1629.2,4.85455204]
[1693761770596,7.76556505,1629.3,1629.2,3.787958]
[1693761770796,7.76556505,1629.3,1629.2,4.85455256]
[1693761771487,1.574,1629.3,1629.2,4.85455256]
[1693761771857,7.76555074,1629.3,1629.2,4.85455256]
[1693761772379,7.76555074,1629.3,1629.2,4.85454963]
[1693761778068,7.76555919,1629.3,1629.2,4.85454963]
[1693761780511,1.574,1629.3,1629.2,4.85454963]
[1693761780987,7.76543267,1629.3,1629.2,4.85454963]
[1693761782022,7.76547665,1629.3,1629.2,4.85454963]
[1693761790531,7.76547665,1629.3,1629.2,2.20174963]
[1693761790729,8.64708432,1629.3,1629.2,2.20174963]
[1693761791033,8.64708432,1629.3,1629.2,1.135158]
[1693761795092,7.76547665,1629.3,1629.2,1.135158]
[1693761799831,7.76565326,1629.3,1629.2,1.135158]
[1693761806830,7.76565326,1629.3,1629.2,2.20176271]
[1693761807146,7.76565326,1629.3,1629.2,1.135158]
[1693761821541,7.76582133,1629.3,1629.2,1.135158]
[1693761830722,0.48955722,1629.4,1629.2,3.21934039]
[1693761830922,50.35535521,1629.6,1629.3,1.71100659]
[1693761831122,6.19087785,1629.5,1629.3,2.6839]
[1693761831966,6.19087785,1629.5,1629.4,1.06646433]
[1693761832173,6.19087785,1629.5,1629.3,3.32833295]
[1693761832339,6.19087785,1629.5,1629.4,0.43947973]
[1693761833457,49.864,1629.6,1629.4,0.43947973]
[1693761835324,1.574,1629.5,1629.3,2.6839]
[1693761835573,1.574,1629.4,1629.3,2.6839]
[1693761835755,1.574,1629.4,1629.3,3.75039876]
[1693761836074,1.574,1629.4,1629.3,2.6839]
[1693761836744,1.574,1629.5,1629.3,2.6839]
[1693761846287,3.5064,1629.5,1629.3,2.6839]
[1693761875342,6.19103107,1629.4,1629.3,2.6839]
[1693761875546,6.19103107,1629.4,1629.3,3.75040262]
[1693761879146,6.19112036,1629.4,1629.3,3.75040262]
[1693761896397,7.76512036,1629.4,1629.3,3.75040262]
[1693761897803,1.574,1629.4,1629.3,3.75040262]
[1693761898166,7.76514665,1629.4,1629.3,3.75040262]
[1693761898400,6.19114665,1629.4,1629.3,3.75040262]
[1693761913427,6.19114665,1629.4,1629.3,5.04449987]
[1693761920550,6.5064,1629.5,1629.3,5.04449987]
[1693761920710,6.19103123,1629.4,1629.3,3.97799725]
[1693761920911,6.19103123,1629.4,1629.3,5.04449619]
[1693761933115,6.19103123,1629.4,1629.3,4.39483189]
[1693761934856,6.19103123,1629.4,1629.3,3.75039894]
[1693761937416,6.19103123,1629.4,1629.3,4.39483189]
[1693761937617,6.19103123,1629.4,1629.3,3.75039894]
[1693761942534,6.19111116,1629.4,1629.3,3.75039894]
[1693761952059,9.03486228,1629.4,1629.3,1.06649894]
[1693761952265,9.03486228,1629.4,1629.2,1.135158]
[1693761952595,7.76511116,1629.3,1629.2,1.135158]
[1693761953343,7.76632416,1629.3,1629.2,1.135158]
[1693761953587,9.47967069,1629.3,1629.2,1.135158]
[1693761965134,9.96420042,1629.3,1629.2,1.135158]
[1693761966017,13.04605446,1629.3,1629.2,1.135158]
[1693761966220,19.18365446,1629.3,1629.2,1.135158]
[1693761966428,19.18365446,1629.3,1628.9,0.1]
[1693761966623,3.148,1629.0,1628.9,0.1]
[1693761967534,6.22985404,1629.0,1628.9,0.1]
[1693761967739,12.42319547,1629.0,1628.9,0.1]
[1693761968340,18.56192547,1629.0,1628.9,0.1]
[1693761968833,12.36858404,1629.0,1628.9,0.1]
[1693761969031,15.02660144,1629.0,1628.9,0.1]
[1693761969236,8.88787144,1629.0,1628.9,0.1]
[1693761969639,21.22000249,1629.0,1628.8,0.1]
[1693761969852,7.65585404,1628.9,1628.8,0.1]
[1693761970152,23.01944845,1628.9,1628.8,0.1]
[1693761970315,16.88033845,1628.9,1628.8,0.1]
[1693761970504,17.12611645,1628.9,1628.8,0.1]
[1693761971306,17.12611645,1628.9,1628.7,0.1]
[1693761971307,29.88433645,1628.9,1628.7,0.1]
[1693761971542,23.69025818,1628.9,1628.7,0.1]
[1693761971716,8.50850582,1628.8,1628.7,0.1]
[1693761971902,11.59035986,1628.8,1628.7,0.1]
[1693761972908,14.59035986,1628.8,1628.7,0.1]
[1693761973115,8.45087986,1628.8,1628.7,0.1]
[1693761973328,10.02487986,1628.8,1628.7,0.1]
[1693761974052,13.02487986,1628.8,1628.7,0.1]
[1693761975047,13.02487986,1628.8,1628.6,0.1]
[1693761975211,5.95834203,1628.7,1628.6,0.1]
[1693761978822,5.31808911,1628.7,1628.6,0.1]
[1693761979530,8.31808911,1628.7,1628.6,0.1]
[1693761982325,14.45794911,1628.7,1628.6,0.1]
[1693761983672,62.74794911,1628.7,1628.6,0.1]
[1693761986271,63.25034009,1628.7,1628.6,0.1]
[1693761986872,57.11048009,1628.7,1628.6,0.1]
[1693761987081,50.36639098,1628.7,1628.6,0.1]
[1693761987277,49.864,1628.7,1628.6,0.74082924]
[1693761987460,49.864,1628.7,1628.6,1.80796956]
[1693761988890,49.864,1628.7,1628.6,2.76921343]
[1693761989458,49.864,1628.7,1628.6,1.80796956]
[1693761990349,49.864,1628.7,1628.6,2.76921343]
[1693761992291,49.864,1628.7,1628.6,2.12838419]
[1693761993100,49.864,1628.7,1628.6,2.76955316]
[1693761993317,49.864,1628.7,1628.6,2.12838419]
[1693761994364,49.864,1628.7,1628.6,2.76985033]
[1693761995209,49.864,1628.7,1628.6,2.76987814]
[1693761995376,49.864,1628.7,1628.6,2.12838419]
[1693761997389,56.05819818,1628.7,1628.6,2.12838419]
[1693762002719,56.05819818,1628.7,1628.6,4.02389695]
[1693762002932,56.05819818,1628.7,1628.6,4.02651862]
[1693762003082,56.05819818,1628.7,1628.6,3.41266435]
[1693762003284,56.05819818,1628.7,1628.6,2.13100586]
[1693762006926,56.05819818,1628.7,1628.6,2.77408331]
[1693762007077,56.05815039,1628.7,1628.6,2.77408331]
[1693762007277,56.05815039,1628.7,1628.6,1.81021777]
[1693762009204,62.01308539,1628.7,1628.6,1.81021777]
[1693762009413,62.01308539,1628.7,1628.6,1.16714032]
[1693762009785,62.01308539,1628.7,1628.6,1.81021777]
[1693762010383,62.01308539,1628.7,1628.6,1.16714032]
[1693762011636,62.01322687,1628.7,1628.6,1.16714032]
[1693762013510,56.05829187,1628.7,1628.6,1.16714032]
[1693762016353,56.05829187,1628.7,1628.6,0.1]
[1693762055738,65.28000591,1628.7,1628.6,0.1]
[1693762057607,59.14014591,1628.7,1628.6,0.1]
[1693762061837,56.05829187,1628.7,1628.6,0.1]
[1693762062571,56.05860206,1628.7,1628.6,0.1]
[1693762066556,54.48460206,1628.7,1628.6,0.1]
[1693762066761,54.48460206,1628.7,1628.6,1.1669968]
[1693762067479,54.48388635,1628.7,1628.6,1.1669941]
[1693762069703,48.29,1628.7,1628.6,1.1669941]
[1693762070366,3.0,1628.8,1628.6,1.81007155]
[1693762070567,3.0,1628.8,1628.7,1.0669941]
[1693762070797,3.0,1628.8,1628.7,1.50161126]
[1693762073665,3.0,1628.8,1628.7,0.43461716]
[1693762084692,3.0,1628.8,1628.6,2.57071716]
[1693762105475,4.574,1628.8,1628.6,2.57071716]
[1693762105656,2.0314,1628.7,1628.6,0.03461716]
[1693762106089,3.9855,1628.7,1628.6,0.03461716]
[1693762111440,10.17964608,1628.7,1628.6,0.03461716]
[1693762115789,3.9855,1628.7,1628.6,0.03461716]
[1693762124097,3.5281,1628.7,1628.6,0.03461716]
[1693762124260,1.574,1628.7,1628.6,0.03461716]
[1693762124461,6.6503,1628.8,1628.6,0.03461716]
[1693762139216,1.574,1628.7,1628.6,0.03461716]
[1693762141206,7.76799216,1628.7,1628.6,0.03461716]
[1693762141713,11.15542138,1628.7,1628.6,0.03461716]
[1693762142683,9.87099216,1628.7,1628.6,0.03461716]
[1693762142924,4.574,1628.8,1628.6,0.03461716]
[1693762143127,6.1940124,1628.7,1628.6,0.03461716]
[1693762144237,7.7680124,1628.7,1628.6,0.03461716]
[1693762146098,9.7927124,1628.7,1628.6,0.03461716]
[1693762158773,9.79295808,1628.7,1628.6,0.03461716]
[1693762167742,11.07225389,1628.7,1628.6,0.03461716]
[1693762177314,11.07234161,1628.7,1628.6,0.03461716]
[1693762179715,7.7683458,1628.7,1628.6,0.03461716]
[1693762179886,6.1943458,1628.7,1628.6,0.03461716]
[1693762180268,6.1943458,1628.7,1628.6,1.10161489]
[1693762180899,6.19390667,1628.7,1628.6,1.10161489]
[1693762184744,3.0,1628.8,1628.6,0.67893806]
[1693762184948,3.0,1628.8,1628.6,1.74593579]
[1693762185103,3.0,1628.8,1628.7,1.06699773]
[1693762185438,9.19351868,1628.8,1628.7,1.50690131]
[1693762186448,9.19351868,1628.8,1628.7,0.43990358]
[1693762196576,9.19351868,1628.8,1628.6,2.68771716]
[1693762196765,3.0,1628.8,1628.6,2.68771716]
[1693762197796,4.574,1628.8,1628.6,2.68771716]
[1693762200012,1.574,1628.7,1628.6,2.68771716]
[1693762200225,1.574,1628.7,1628.6,0.03461716]
[1693762200707,3.6716,1628.7,1628.6,0.03461716]
[1693762205208,9.86566345,1628.7,1628.6,0.03461716]
[1693762206374,7.76806345,1628.7,1628.6,0.03461716]
[1693762206583,3.0,1628.8,1628.6,0.03461716]
[1693762207083,3.0,1628.8,1628.6,2.59171716]
[1693762207272,1.574,1628.7,1628.6,2.96331975]
[1693762220617,7.76788858,1628.7,1628.6,2.96331975]
[1693762221283,7.76788858,1628.7,1628.6,4.03031415]
[1693762223344,1.574,1628.7,1628.6,4.03031415]
[1693762223838,7.7678344,1628.7,1628.6,4.03031415]
[1693762224011,1.574,1628.7,1628.6,4.03031415]
[1693762225444,3.0,1628.8,1628.6,10.75647696]
[1693762225613,3.0,1628.8,1628.7,3.75379978]
[1693762225818,3.0,1628.8,1628.7,2.78733662]
[1693762226016,3.0,1628.8,1628.7,3.75379978]
[1693762226334,3.0,1628.8,1628.7,2.78733662]
[1693762234850,30.41,1629.1,1628.7,10.47957685]
[1693762235055,30.41,1629.1,1628.8,7.28702854]
[1693762235268,30.41,1629.1,1628.9,1.0669944]
[1693762236778,1.9068,1629.3,1628.9,1.0669944]
[1693762236977,3.4808,1629.3,1629.0,2.6294]
[1693762245355,6.4808,1629.3,1629.0,2.6294]
[1693762245885,1.574,1629.1,1629.0,2.6294]
[1693762251181,3.5583,1629.2,1629.0,2.6294]
[1693762252731,3.5583,1629.2,1629.0,2.95661006]
[1693762264375,3.5583,1629.2,1629.1,1.06667039]
[1693762269145,1.574,1629.3,1629.1,1.06667039]
[1693762269345,3.561,1629.3,1629.1,1.06667039]
[1693762271127,6.1919515,1629.2,1629.1,1.06667039]
[1693762271325,6.1919515,1629.2,1629.1,1.5332685]
[1693762272516,3.561,1629.3,1629.1,2.17596914]
[1693762272710,3.561,1629.3,1629.2,1.06667039]
[1693762272910,9.75265259,1629.3,1629.2,1.06667039]
[1693762276267,9.75265259,1629.3,1629.1,0.46659811]
[1693762276417,3.561,1629.3,1629.1,2.17591824]
[1693762276615,3.561,1629.3,1629.2,1.06661949]
[1693762276817,9.75270922,1629.3,1629.2,1.06661949]
[1693762279368,9.75270922,1629.3,1629.1,0.46659811]
[1693762279529,3.561,1629.3,1629.1,0.46659811]
[1693762299830,6.19170795,1629.2,1629.1,0.46659811]
[1693762300126,6.19170795,1629.2,1629.1,1.53321706]
[1693762306205,3.561,1629.3,1629.1,1.53321706]
[1693762306542,3.561,1629.3,1629.1,0.46659811]
[1693762308624,6.19166676,1629.2,1629.1,0.46659811]
[1693762308817,6.19166676,1629.2,1629.1,1.53321002]
[1693762315148,6.19166676,1629.2,1629.1,2.17591066]
[1693762316845,49.864,1629.4,1629.1,2.17591066]
[1693762317013,6.19156817,1629.3,1629.2,1.06661191]
[1693762321552,6.19156817,1629.3,1629.2,6.13405766]
[1693762321842,6.19156817,1629.4,1629.2,6.13405766]
[1693762322043,6.19156817,1629.3,1629.2,5.06744575]
[1693762322248,6.19156817,1629.3,1629.2,8.74708271]
[1693762322953,6.1912507,1629.3,1629.2,8.74708271]
[1693762323451,7.7652507,1629.3,1629.2,1.7092376]
[1693762323625,7.7652507,1629.3,1629.2,1.06653696]
[1693762324032,7.7652507,1629.3,1629.1,0.64270064]
[1693762324267,1.574,1629.2,1629.1,0.64270064]
[1693762326751,1.574,1629.2,1629.1,1.06653696]
[1693762326945,1.574,1629.2,1629.0,2.67328856]
[1693762327251,1.574,1629.2,1629.1,1.06653696]
[1693762327429,7.76582826,1629.2,1629.1,1.06653696]
[1693762329060,7.76582826,1629.2,1629.0,3.34140754]
[1693762329223,1.574,1629.2,1629.1,1.06653696]
[1693762329423,7.76583465,1629.2,1629.1,1.06653696]
[1693762334530,7.76583465,1629.2,1629.0,3.34140754]
[1693762334735,1.574,1629.2,1629.1,1.40067771]
[1693762335267,7.76580212,1629.2,1629.1,1.40067771]
[1693762336585,7.76580212,1629.2,1629.1,1.06653696]
[1693762339286,1.574,1629.3,1629.1,1.7092376]
[1693762339645,1.574,1629.3,1629.1,4.4182376]
[1693762339846,1.574,1629.3,1629.2,1.06653696]
[1693762340192,7.76554266,1629.3,1629.2,1.06653696]
[1693762344478,7.76553364,1629.3,1629.2,1.06653696]
[1693762344884,7.76553364,1629.3,1629.2,1.50836072]
[1693762349171,6.19153364,1629.3,1629.2,1.50836072]
[1693762349355,31.984,1629.7,1629.2,3.11511232]
[1693762349563,6.19083581,1629.6,1629.3,1.7092376]
[1693762349776,6.19083581,1629.6,1629.3,4.3291376]
[1693762350000,6.19083581,1629.6,1629.4,1.49945072]
[1693762350311,6.19083581,1629.6,1629.5,1.06638738]
[1693762350609,3.5734,1629.8,1629.5,1.06638738]
[1693762350898,6.1902921,1629.7,1629.5,1.06638738]
[1693762351195,6.1902921,1629.7,1629.5,3.72268738]
[1693762351372,6.1902921,1629.7,1629.5,3.13613018]
[1693762351876,7.7642921,1629.7,1629.5,3.13613018]
[1693762352079,1.574,1629.7,1629.5,3.13613018]
[1693762365614,3.5734,1629.8,1629.5,3.13613018]
[1693762369831,1.9994,1629.8,1629.5,3.13613018]
[1693762370162,1.9994,1629.8,1629.6,0.31361302]
[1693762380416,49.864,1629.9,1629.6,0.31361302]
[1693762381488,1.574,1629.9,1629.6,0.31361302]
[1693762384622,3.6386,1629.9,1629.6,2.02229481]
[1693762384824,3.6386,1629.9,1629.7,1.0662733]
[1693762385316,3.6386,1629.9,1629.7,3.5847733]
[1693762385526,3.6386,1629.9,1629.7,2.97257948]
[1693762392310,3.6386,1629.9,1629.7,2.5185]
[1693762394052,3.6386,1629.9,1629.8,1.06624716]
[1693762394207,9.82815573,1629.9,1629.8,1.06624716]
[1693762395227,9.82815573,1629.9,1629.7,1.70865565]
[1693762395436,3.6386,1629.9,1629.8,1.06624716]
[1693762395618,9.82811832,1629.9,1629.7,1.70865565]
[1693762395948,3.6386,1629.9,1629.8,1.06624716]
[1693762396145,9.82813888,1629.9,1629.7,1.70865565]
[1693762396307,3.6386,1629.9,1629.7,1.70865565]
[1693762396506,3.6386,1629.9,1629.7,1.06624716]
[1693762396751,3.6386,1629.9,1629.6,4.30162123]
[1693762397047,3.6386,1629.9,1629.7,1.06624819]
[1693762397845,6.18957394,1629.8,1629.7,1.06624819]
[1693762399737,7.76357394,1629.8,1629.7,1.06624819]
[1693762400841,7.76357394,1629.8,1629.6,2.6956]
[1693762401047,1.574,1629.8,1629.6,3.12576212]
[1693762409065,1.574,1629.8,1629.7,1.06625919]
[1693762409370,7.76361285,1629.8,1629.7,1.06625806]
[1693762409542,7.76361285,1629.8,1629.6,3.12576212]
[1693762409747,1.574,1629.8,1629.7,1.0662609]
[1693762409969,7.76364341,1629.8,1629.7,1.0662609]
[1693762410273,7.76364341,1629.8,1629.6,3.12576212]
[1693762410448,1.574,1629.8,1629.6,3.12576212]
[1693762410777,1.574,1629.8,1629.7,1.06626446]
[1693762411067,7.76365031,1629.8,1629.7,1.06626446]
[1693762416050,6.18965031,1629.8,1629.7,1.06626446]
[1693762416476,7.76365031,1629.8,1629.7,1.06626446]
[1693762418994,7.76354838,1629.8,1629.7,1.06626446]
[1693762422897,1.574,1629.8,1629.7,1.06626446]
[1693762423403,7.76357416,1629.8,1629.7,1.06626446]
[1693762428213,6.18957416,1629.8,1629.7,1.06626446]
[1693762431949,6.18958566,1629.8,1629.7,1.06626446]